[Event "7th Sharjah Masters 2024"]
[Site "Sharjah"]
[Date "2024.05.14"]
[Round "1.43"]
[White "Vakhidov, Jakhongir"]
[Black "Gholami Orimi, Mahdi"]
[Result "1-0"]
[ECO "A21"]
[WhiteElo "2599"]
[BlackElo "2470"]
[Annotator "TA"]
[PlyCount "71"]
[EventDate "2024.05.13"]
[EventType "swiss"]
[EventCountry "UAE"]
[SourceTitle "playchess.com"]
[Source "ChessBase"]
[SourceQuality "1"]
[TimeControl "5400+30"]

{[%evp 9,71,25,29,20,27,26,32,20,30,27,29,22,24,23,32,10,10,14,29,0,34,12,14,0,41,21,14,18,40,23,27,37,41,31,39,12,80,99,212,218,217,244,235,260,256,263,229,213,354,371,281,282,1201,1178,1123,1038,29964,29966,29965,29969,29988,29989,29990,29991]} 1. c4 {[%emt 1:31:00]} e5 {[%emt 1:31:00]} 2. Nc3 {[%emt 0:00:30]} Bb4 {[%emt 0:00:30]} 3. Nd5 {[%emt 0:00:30]} Bc5 {[%emt 0:00:30]} 4. e3 {[%emt 0:00:30]} c6 {[%emt 0:00:30]} 5. d4 {[%emt 0:00:30]} exd4 {[%emt 0:00:30]} 6. exd4 {[%emt 0:00:30]} Be7 {[%emt 0:00:30]} 7. Nxe7 {[%emt 0:00:30]} Nxe7 {[%emt 0:00:30]} 8. Bd3 {[%emt 0:00:30] White is slightly better.} d5 {[%emt 0:00:30]} 9. c5 {[%emt 0:00:30]} Bf5 {[%emt 0:00:30] Black is weak on the dark squares} 10. Ne2 {[%emt 0:00:30]} O-O {[%emt 0:00:30]} 11. O-O {[%emt 0:00:30]} Nd7 {[%emt 0:00:30]} 12. Ng3 {[%emt 0:00:30]} Bxd3 {[%emt 0:00:30]} 13. Qxd3 {[%emt 0:00:30]} b6 {[%emt 0:00:30]} 14. Be3 {[%emt 0:00:30]} Re8 {[%emt 0:00:30]} 15. b4 {[%emt 0:00:30]} a5 {[%emt 0:00:30]} 16. a3 {[%emt 0:00:30]} Qc7 {[%emt 0:00:30]} 17. Bd2 {[%emt 0:00:30]} axb4 {[%emt 0:00:30]} 18. axb4 {[%emt 0:00:30]} Qb7 {[%emt 0:00:30]} 19. h4 {[%emt 0:00:30]} Nf8 {[%emt 0:00:30]} 20. h5 {[%emt 0:00:30]} h6 {[%emt 0:00:30]} 21. Rxa8 {[%emt 0:00:30]} Rxa8 {[%emt 0:00:30]} 22. Re1 {[%emt 0:00:30]} Ne6 {[%emt 0:00:30]} (22... Ra7 $11 {keeps the balance.}) 23. f4 $1 $16 {[%emt 0:00:30] Threatens to win with f5. White is more active.} Nf8 {[%emt 0:00:30]} (23... bxc5 $16 24. dxc5 Nf8) 24. cxb6 $18 {[%emt 0:00:30]} Kh8 {[%emt 0:00:30]} 25. b5 $1 {[%emt 0:00:30]} Ng8 {[%emt 0:00:30]} 26. Nf5 {[%emt 0:00:30][%cal Bg3f5,Bf5d6,Bd6f7][%mdl 32]} Qxb6 {[%emt 0:00:30] [#]} 27. Qg3 $1 {[%emt 0:00:30][%csl Gf5][%cal Rg3g7]} (27. Nd6 Qc7 28. Bb4 cxb5 $11) 27... g6 {[%emt 0:00:30] [#]} (27... Ne6 $2 28. Rxe6 g6 29. Nd6 $18 (29. Rxc6 Qxb5 30. hxg6 Qb1+ 31. Qe1 Qxf5 $18)) 28. Nd6 {[%emt 0:00:30]} ({Don't do} 28. hxg6 $6 fxg6 29. Nd6 cxb5 $16) 28... Qxd4+ {[%emt 0:00:30]} (28... cxb5 $142 29. f5 (29. Nxf7+ Kg7 $16) 29... gxh5) 29. Be3 {[%emt 0:00:30]} Qf6 {[%emt 0:00:30]} 30. f5 {[%emt 0:00:30]} cxb5 $2 {[%emt 0:00:30] [#]} (30... gxf5 31. b6 (31. bxc6 Ne6 $16) 31... Ra1) 31. Nxf7+ $1 {[%emt 0:00:30][%mdl 512]} Kg7 {[%emt 0:00:30]} (31... Kh7 32. fxg6+) 32. hxg6 {[%emt 0:00:30]} Ra1 {[%emt 0:00:30]} 33. Rxa1 {[%emt 0:00:30] White mates.} Qxa1+ {[%emt 0:00:30]} 34. Kh2 {[%emt 0:00:30]} Qf6 {[%emt 0:00:30]} 35. Nd6 {[%emt 0:00:30]} Kh8 {[%emt 0:00:30]} 36. Ne8 {[%emt 0:00:30] Weighted Error Value: White=0.05 (flawless) /Black=0.41.  Mistake:       	---       	Black=4      Inaccurate:     	White=2     	Black=2      OK:         	White=9     	Black=11     Best:        	White=2     	Black=1      Strong:       	White=3     	---        Brilliant:      	White=1     	---} 1-0

[Event "7th Sharjah Masters 2024"]
[Site "Sharjah"]
[Date "2024.05.14"]
[Round "1.44"]
[White "Royal, Shreyas"]
[Black "Jumabayev, Rinat"]
[Result "1-0"]
[ECO "D12"]
[WhiteElo "2464"]
[BlackElo "2597"]
[Annotator "TA"]
[PlyCount "81"]
[EventDate "2024.05.13"]
[EventType "swiss"]
[EventCountry "UAE"]
[SourceTitle "playchess.com"]
[Source "ChessBase"]
[SourceQuality "1"]
[TimeControl "5400+30"]

{[%evp 12,81,31,20,32,12,35,21,23,16,21,6,22,10,16,0,0,0,0,0,0,0,-7,-19,0,0,0,-20,0,0,0,0,0,-22,63,0,183,179,186,197,179,191,191,196,197,193,344,320,462,344,347,337,397,326,366,362,354,300,359,366,461,464,444,445,458,425,639,639,611,565,570,549]} 1. d4 {[%emt 0:00:06]} d5 {[%emt 0:00:28]} 2. c4 {[%emt 0:00:13]} c6 {[%emt 0:00:05]} 3. Nf3 {[%emt 0:00:23]} Nf6 {[%emt 0:00:03]} 4. e3 {[%emt 0:00:22]} Bf5 {[%emt 0:00:13]} 5. Nc3 {[%emt 0:00:09]} e6 {[%emt 0:00:09]} 6. Nh4 {[%emt 0:00:09]} Be4 {[%emt 0:00:03]} 7. f3 {[%emt 0:00:32]} Bg6 {[%emt 0:00:06]} 8. Bd2 {[%emt 0:00:27]} Be7 {[%emt 0:02:00]} 9. Nxg6 {[%emt 0:04:34]} hxg6 {[%emt 0:00:20] The position is equal.} 10. Qc2 {[%emt 0:00:20]} Nbd7 {[%emt 0:12:59]} 11. O-O-O {[%emt 0:04:41]} dxc4 {[%emt 0:09:01]} 12. Bxc4 {[%emt 0:00:19]} a6 {[%emt 0:00:09]} 13. Kb1 {[%emt 0:13:06]} b5 {[%emt 0:01:59]} 14. Be2 {[%emt 0:04:02]} c5 $1 {[%emt 0:01:55]} 15. g4 {[%emt 0:10:04]} cxd4 {[%emt 0:08:58]} 16. exd4 {[%emt 0:00:07]} Nb6 {[%emt 0:01:06][%cal Oa8c8]} 17. g5 {[%emt 0:02:34]} Nfd5 {[%emt 0:03:21]} 18. Nxd5 {[%emt 0:01:12]} Qxd5 {[%emt 0:03:23]} 19. Qe4 {[%emt 0:07:09]} Rc8 {[%emt 0:18:31]} 20. h4 {[%emt 0:02:19]} Bd6 {[%emt 0:03:15]} 21. Bd3 {[%emt 0:01:54]} Ke7 {[%emt 0:08:49]} 22. Qg4 {[%emt 0:04:52]} Na4 {[%emt 0:01:22]} (22... b4 $11) 23. Rc1 {[%emt 0:03:12]} (23. Rhe1 $1 $14) 23... Bc5 $2 {[%emt 0:12:50] [#] White leaves nothing to chance now.} 24. b3 $18 {[%emt 0:07:09]} Ba3 {[%emt 0:01:55]} 25. Rxc8 {[%emt 0:03:26]} Rxc8 {[%emt 0:00:04]} 26. bxa4 {[%emt 0:00:18]} bxa4 {[%emt 0:00:54] [#] ( -> ...Qb7+)} 27. Ka1 $1 {[%emt 0:00:06][%cal Og4e4]} (27. Bxa6 $2 Rb8+ 28. Kc2 (28. Ka1 Rb2) 28... Qc6+ (28... Qxa2+ 29. Kd3 $11) 29. Kd3 Qxa6+ 30. Ke3 Qc4 $19) 27... Rd8 {[%emt 0:05:15]} 28. Rd1 {[%emt 0:01:53][%cal Og4e4] Threatens to win with Qe4!} (28. Bxa6 Qd6 29. Bb7 Bb4 30. Bxb4 Qxb4 $17) 28... Qc6 {[%emt 0:01:49]} (28... Bc5 {might work better.} 29. Bc3 (29. Bxa6 $2 Bxd4+ 30. Kb1 Qc5 $19) (29. dxc5 $2 Qe5+ 30. Kb1 a3 $19) 29... Bxd4 30. Qxd4 (30. Bxa6 $2 Bxc3+ 31. Kb1 Qxd1#) 30... Qxd4 31. Bxd4 Rxd4) 29. Rb1 {[%emt 0:03:21]} Kf8 {[%emt 0:03:04]} (29... Qd6 {is a better defense.} 30. Ba5 Qxd4+ 31. Qxd4 Rxd4) 30. Qe4 {[%emt 0:07:19]} Qd6 {[%emt 0:00:39]} 31. Bc3 {[%emt 0:01:02]} Rc8 {[%emt 0:00:07]} 32. Qe1 {[%emt 0:01:43]} a5 {[%emt 0:00:38]} 33. Qd2 {[%emt 0:01:50]} (33. Bxa5 $2 Qxd4+ $19) 33... Kg8 {[%emt 0:00:24]} 34. Bb5 {[%emt 0:01:19][%cal Bd3b5,Bb5a4,Ba4b3][%mdl 32]} (34. Bxa5 $2 Qxd4+ 35. Rb2 Bxb2+ (35... Qxb2+ 36. Qxb2 Bxb2+ 37. Kxb2 $18) 36. Qxb2 Qxd3 $19) 34... Qd5 {[%emt 0:00:29]} 35. Qd3 {[%emt 0:02:10]} ({Resist} 35. Bxa5 Ra8 $18) (35. Bxa4 Qc4 $15 (35... Qxf3 $2 36. Bxa5 Qg3 37. Bb3 $18)) 35... Bb4 {[%emt 0:01:04]} 36. Bxb4 {[%emt 0:00:20] White is clearly winning.} axb4 {[%emt 0:00:01]} 37. Rxb4 {[%emt 0:00:25]} Qd6 {[%emt 0:00:28]} 38. Rc4 {[%emt 0:00:39]} ({Much less strong is} 38. Rxa4 Rc1+ 39. Kb2 Rh1 $18) 38... Rd8 {[%emt 0:00:47]} (38... Rxc4 $142 39. Bxc4 (39. Qxc4 a3 $18) 39... Qb4) 39. Bxa4 {[%emt 0:00:38]} Qh2 {[%emt 0:00:10]} 40. Bb3 {[%emt 0:02:00]} Qxh4 {[%emt 0:00:09]} 41. Qe3 {[%emt 0:00:08] Weighted Error Value: White=0.18 (very precise) /Black=0.40.  Loses game:     	---       	Black=1      Mistake:       	White=1     	Black=4      OK:         	White=9     	Black=6      Best:        	White=2     	Black=2      Strong:       	White=1     	Black=1} 1-0